[Event "Early-Titled-Tuesday-Blitz-October-17-2023"]
[Site "Chess.com"]
[Date "2023.10.17"]
[Round "6"]
[White "Bala-Afiada"]
[Black "dontcatchmeifyoucant"]
[Result "0-1"]
[WhiteElo "1904"]
[BlackElo "2164"]
[TimeControl "180+1"]
[EndTime "9:10:02 PDT"]
[Termination "dontcatchmeifyoucant won by resignation"]

1. d4 {[%clk 0:03:00.9]} 1... Nf6 {[%clk 0:02:58.1]} 2. c4 {[%clk 0:02:54.8]}
2... e6 {[%clk 0:02:58.3]} 3. g3 {[%clk 0:02:54.8]} 3... d5 {[%clk 0:02:58.3]}
4. Nf3 {[%clk 0:02:52.5]} 4... Be7 {[%clk 0:02:58.5]} 5. Bg2 {[%clk 0:02:53]}
5... O-O {[%clk 0:02:59.1]} 6. O-O {[%clk 0:02:53.6]} 6... dxc4 {[%clk
0:02:58.7]} 7. Ne5 {[%clk 0:02:49.4]} 7... Nc6 {[%clk 0:02:58.3]} 8. Bxc6 {[%clk
0:02:43.6]} 8... bxc6 {[%clk 0:02:59.2]} 9. Nxc6 {[%clk 0:02:42.7]} 9... Qe8
{[%clk 0:02:59.7]} 10. Nxe7+ {[%clk 0:02:41]} 10... Qxe7 {[%clk 0:03:00.6]} 11.
Qc2 {[%clk 0:02:34.1]} 11... c5 {[%clk 0:02:47.9]} 12. Qxc4 {[%clk 0:02:21.9]}
12... cxd4 {[%clk 0:02:48.2]} 13. Qxd4 {[%clk 0:02:15.3]} 13... e5 {[%clk
0:02:48.4]} 14. Qh4 {[%clk 0:02:08]} 14... Ba6 {[%clk 0:02:29.9]} 15. Nc3 {[%clk
0:02:00.7]} 15... h6 {[%clk 0:02:30.4]} 16. Ne4 {[%clk 0:01:41]} 16... Nd5
{[%clk 0:02:18.2]} 17. Qxe7 {[%clk 0:01:32.6]} 17... Nxe7 {[%clk 0:02:19.1]} 18.
Nc3 {[%clk 0:01:19.5]} 18... f5 {[%clk 0:02:18.2]} 19. Be3 {[%clk 0:01:07.2]}
19... f4 {[%clk 0:02:14.3]} 20. Bc5 {[%clk 0:01:05.1]} 20... Rf7 {[%clk
0:02:14.3]} 21. Bxe7 {[%clk 0:00:49.3]} 21... Rxe7 {[%clk 0:02:14.4]} 22. gxf4
{[%clk 0:00:50.2]} 22... exf4 {[%clk 0:02:14.6]} 23. Rfe1 {[%clk 0:00:49.9]}
23... Rf8 {[%clk 0:02:13.3]} 24. Rad1 {[%clk 0:00:37]} 24... Rf6 {[%clk
0:02:12.9]} 25. Nd5 {[%clk 0:00:23.6]} 25... Rg6+ {[%clk 0:02:12.6]} 26. Kh1
{[%clk 0:00:24.1]} 26... Bb7 {[%clk 0:02:10.2]} 27. f3 {[%clk 0:00:14.1]} 27...
Rf7 {[%clk 0:02:10.2]} 28. Rd4 {[%clk 0:00:05.9]} 28... Rd6 {[%clk 0:02:09.6]}
29. Ne7+ {[%clk 0:00:03.7]} 29... Rxe7 {[%clk 0:02:09]} 30. Rxd6 {[%clk
0:00:04.3]} 30... Bxf3+ {[%clk 0:02:07.7]} 31. Kg1 {[%clk 0:00:03.6]} 31... Bxe2
{[%clk 0:02:06]} 32. Kf2 {[%clk 0:00:02.5]} 32... f3 {[%clk 0:02:06.6]} 33. Rd2
{[%clk 0:00:01.6]} 33... g5 {[%clk 0:02:04.5]} 34. Rexe2 {[%clk 0:00:02]} 34...
fxe2 {[%clk 0:02:04.2]} 35. Rxe2 {[%clk 0:00:02.9]} 35... Rf7+ {[%clk
0:02:04.7]} 36. Kg3 {[%clk 0:00:03]} 36... Kg7 {[%clk 0:02:03.9]} 37. Re6 {[%clk
0:00:03]} 37... Rb7 {[%clk 0:02:03.6]} 38. b3 {[%clk 0:00:02.7]} 38... Rd7
{[%clk 0:02:03.9]} 39. a4 {[%clk 0:00:02.6]} 39... Rb7 {[%clk 0:01:56.8]} 40.
Re4 {[%clk 0:00:01.8]} 40... Rxb3+ {[%clk 0:01:56.6]} 41. Kg4 {[%clk 0:00:01.8]}
41... Kf6 {[%clk 0:01:54.4]} 42. Rc4 {[%clk 0:00:01.6]} 42... Rb6 {[%clk
0:01:51]} 43. Rc5 {[%clk 0:00:01.8]} 43... Rd6 {[%clk 0:01:48.6]} 44. Rc4 {[%clk
0:00:01.9]} 44... a6 {[%clk 0:01:45]} 45. Kg3 {[%clk 0:00:02.8]} 45... Kg6
{[%clk 0:01:43]} 46. h3 {[%clk 0:00:03.7]} 46... Kh5 {[%clk 0:01:42.6]} 47. Rd4
{[%clk 0:00:03.4]} 47... Rxd4 {[%clk 0:01:42.4]} 0-1

[Event "Early-Titled-Tuesday-Blitz-October-17-2023"]
[Site "Chess.com"]
[Date "2023.10.17"]
[Round "6"]
[White "SashaKuzhilniy"]
[Black "LangesNasenhaar"]
[Result "1-0"]
[WhiteElo "2625"]
[BlackElo "2501"]
[TimeControl "180+1"]
[EndTime "9:10:10 PDT"]
[Termination "SashaKuzhilniy won on time"]

1. b3 {[%clk 0:03:00.9]} 1... Nf6 {[%clk 0:02:57.5]} 2. Bb2 {[%clk 0:03:01.8]}
2... g6 {[%clk 0:02:57.9]} 3. Nf3 {[%clk 0:03:01.6]} 3... Bg7 {[%clk 0:02:57.9]}
4. g3 {[%clk 0:03:01.9]} 4... c6 {[%clk 0:02:53.8]} 5. Bg2 {[%clk 0:03:02.1]}
5... O-O {[%clk 0:02:53.6]} 6. O-O {[%clk 0:03:02.6]} 6... Qa5 {[%clk
0:02:53.9]} 7. d3 {[%clk 0:02:51.9]} 7... d6 {[%clk 0:02:53.9]} 8. Nbd2 {[%clk
0:02:51.1]} 8... Qh5 {[%clk 0:02:53.1]} 9. e4 {[%clk 0:02:49.2]} 9... Bh3 {[%clk
0:02:50]} 10. Nh4 {[%clk 0:02:49.3]} 10... Qxd1 {[%clk 0:02:44.1]} 11. Raxd1
{[%clk 0:02:46.7]} 11... Bxg2 {[%clk 0:02:44.2]} 12. Nxg2 {[%clk 0:02:46.2]}
12... a5 {[%clk 0:02:42.4]} 13. Ne3 {[%clk 0:02:41.6]} 13... a4 {[%clk 0:02:39]}
14. f4 {[%clk 0:02:39.8]} 14... axb3 {[%clk 0:02:18.3]} 15. axb3 {[%clk
0:02:40.7]} 15... Ra2 {[%clk 0:02:14.3]} 16. Bc3 {[%clk 0:02:40]} 16... Ng4
{[%clk 0:02:01.3]} 17. Bxg7 {[%clk 0:02:19.1]} 17... Nxe3 {[%clk 0:02:00.7]} 18.
Bxf8 {[%clk 0:02:19.4]} 18... Kxf8 {[%clk 0:01:52.1]} 19. Ra1 {[%clk 0:02:00.7]}
19... Rxc2 {[%clk 0:01:36.8]} 20. Rf2 {[%clk 0:02:00.3]} 20... Na6 {[%clk
0:01:25.6]} 21. Nc4 {[%clk 0:01:59.1]} 21... Rxf2 {[%clk 0:01:13.6]} 22. Kxf2
{[%clk 0:02:00]} 22... Nc2 {[%clk 0:00:59.5]} 23. Rc1 {[%clk 0:01:52.5]} 23...
Ncb4 {[%clk 0:00:56.1]} 24. Ke3 {[%clk 0:01:50.3]} 24... Nc5 {[%clk 0:00:48]}
25. d4 {[%clk 0:01:30.7]} 25... Ne6 {[%clk 0:00:19]} 26. Na5 {[%clk 0:01:27.7]}
26... Nd8 {[%clk 0:00:14.2]} 27. Rc4 {[%clk 0:01:20.2]} 27... Na6 {[%clk
0:00:12.4]} 28. Ra4 {[%clk 0:01:13.2]} 28... Nc7 {[%clk 0:00:04.5]} 29. Nxb7
{[%clk 0:01:09.8]} 29... Nde6 {[%clk 0:00:01.3]} 30. Rc4 {[%clk 0:00:54.7]} 1-0

[Event "Early-Titled-Tuesday-Blitz-October-17-2023"]
[Site "Chess.com"]
[Date "2023.10.17"]
[Round "6"]
[White "Payyappat"]
[Black "DKmirl"]
[Result "1-0"]
[WhiteElo "2467"]
[BlackElo "2275"]
[TimeControl "180+1"]
[EndTime "9:10:10 PDT"]
[Termination "Payyappat won on time"]

1. e4 {[%clk 0:03:00.9]} 1... c5 {[%clk 0:02:59.9]} 2. Nf3 {[%clk 0:03:00.8]}
2... Nc6 {[%clk 0:03:00.1]} 3. d4 {[%clk 0:03:01.7]} 3... cxd4 {[%clk
0:03:00.4]} 4. Nxd4 {[%clk 0:03:02.6]} 4... Nf6 {[%clk 0:03:00.7]} 5. Nc3 {[%clk
0:03:03.2]} 5... e5 {[%clk 0:03:01]} 6. Ndb5 {[%clk 0:03:03.2]} 6... d6 {[%clk
0:03:01.4]} 7. Bg5 {[%clk 0:03:00.8]} 7... a6 {[%clk 0:03:01.2]} 8. Na3 {[%clk
0:03:00.1]} 8... b5 {[%clk 0:03:01.3]} 9. Nd5 {[%clk 0:02:59.2]} 9... Be7 {[%clk
0:03:01.2]} 10. Bxf6 {[%clk 0:02:59.1]} 10... gxf6 {[%clk 0:02:45.7]} 11. Bd3
{[%clk 0:02:56.6]} 11... O-O {[%clk 0:02:45.1]} 12. O-O {[%clk 0:02:53]} 12...
Be6 {[%clk 0:02:40.3]} 13. f4 {[%clk 0:02:52.3]} 13... Kh8 {[%clk 0:02:31.2]}
14. Qh5 {[%clk 0:02:44.5]} 14... Rg8 {[%clk 0:01:51.5]} 15. c4 {[%clk
0:02:38.7]} 15... Rg7 {[%clk 0:01:26.4]} 16. cxb5 {[%clk 0:02:33.2]} 16... axb5
{[%clk 0:01:21.6]} 17. Nxb5 {[%clk 0:02:16.3]} 17... Qg8 {[%clk 0:00:44.7]} 18.
Rf2 {[%clk 0:02:05.7]} 18... Bg4 {[%clk 0:00:44.7]} 19. Qh4 {[%clk 0:01:57]}
19... exf4 {[%clk 0:00:27.4]} 20. Nxe7 {[%clk 0:01:50]} 20... Nxe7 {[%clk
0:00:26.4]} 21. Qxf6 {[%clk 0:01:50]} 21... Ng6 {[%clk 0:00:22.5]} 22. Nxd6
{[%clk 0:01:31]} 22... Rd8 {[%clk 0:00:09]} 23. Nxf7+ {[%clk 0:01:21.8]} 23...
Qxf7 {[%clk 0:00:06.6]} 24. Qxd8+ {[%clk 0:01:21.8]} 24... Nf8 {[%clk
0:00:07.1]} 25. Qd4 {[%clk 0:01:16.3]} 25... Ne6 {[%clk 0:00:04.9]} 26. Qc3
{[%clk 0:01:15.5]} 26... h5 {[%clk 0:00:03.5]} 27. Raf1 {[%clk 0:01:10.4]} 27...
Kg8 {[%clk 0:00:02.6]} 28. Bc4 {[%clk 0:01:08.2]} 28... h4 {[%clk 0:00:02.3]}
29. Bxe6 {[%clk 0:01:05.1]} 29... Qxe6 {[%clk 0:00:01.1]} 30. Rxf4 {[%clk
0:01:03.9]} 30... h3 {[%clk 0:00:01.3]} 31. Qb3 {[%clk 0:00:54.9]} 1-0

[Event "Early-Titled-Tuesday-Blitz-October-17-2023"]
[Site "Chess.com"]
[Date "2023.10.17"]
[Round "6"]
[White "carokannlover213"]
[Black "Fan_Of_Chucky"]
[Result "1-0"]
[WhiteElo "2723"]
[BlackElo "2495"]
[TimeControl "180+1"]
[EndTime "9:10:12 PDT"]
[Termination "carokannlover213 won by checkmate"]

1. e4 {[%clk 0:03:00.9]} 1... c5 {[%clk 0:02:57.9]} 2. c3 {[%clk 0:03:01.2]}
2... a6 {[%clk 0:02:56.2]} 3. d4 {[%clk 0:02:59]} 3... cxd4 {[%clk 0:02:54.7]}
4. cxd4 {[%clk 0:02:59.9]} 4... d5 {[%clk 0:02:54.5]} 5. e5 {[%clk 0:02:55.6]}
5... Nc6 {[%clk 0:02:54]} 6. Nf3 {[%clk 0:02:55.8]} 6... Bg4 {[%clk 0:02:53.7]}
7. Nbd2 {[%clk 0:02:50.5]} 7... Qb6 {[%clk 0:02:41.9]} 8. h3 {[%clk 0:02:48.7]}
8... Bxf3 {[%clk 0:02:24.5]} 9. Nxf3 {[%clk 0:02:48.2]} 9... e6 {[%clk
0:02:25.1]} 10. a3 {[%clk 0:02:44.5]} 10... Nge7 {[%clk 0:02:20.8]} 11. Bd3
{[%clk 0:02:42.6]} 11... g6 {[%clk 0:01:58.5]} 12. O-O {[%clk 0:02:40.3]} 12...
Nf5 {[%clk 0:01:58.5]} 13. Bxf5 {[%clk 0:02:20.8]} 13... gxf5 {[%clk 0:01:58]}
14. b4 {[%clk 0:02:19.3]} 14... Be7 {[%clk 0:01:49.1]} 15. Be3 {[%clk
0:02:18.3]} 15... Rg8 {[%clk 0:01:38.5]} 16. Kh2 {[%clk 0:02:17.4]} 16... O-O-O
{[%clk 0:01:32.2]} 17. Rc1 {[%clk 0:02:14.3]} 17... Kb8 {[%clk 0:01:24.6]} 18.
Rg1 {[%clk 0:02:12.3]} 18... Rg7 {[%clk 0:00:41.7]} 19. g4 {[%clk 0:01:53.7]}
19... fxg4 {[%clk 0:00:27.9]} 20. Rxg4 {[%clk 0:01:50.6]} 20... Rdg8 {[%clk
0:00:17.7]} 21. Rxg7 {[%clk 0:01:48.2]} 21... Rxg7 {[%clk 0:00:17.2]} 22. Qd3
{[%clk 0:01:48.8]} 22... f6 {[%clk 0:00:11.2]} 23. Bf4 {[%clk 0:01:40.1]} 23...
fxe5 {[%clk 0:00:07.6]} 24. Nxe5 {[%clk 0:01:38]} 24... Ka8 {[%clk 0:00:03.1]}
25. Nxc6 {[%clk 0:00:58.2]} 25... bxc6 {[%clk 0:00:04]} 26. Qe3 {[%clk
0:00:57.5]} 26... Rg6 {[%clk 0:00:03.5]} 27. Qe5 {[%clk 0:00:54.8]} 27... Kb7
{[%clk 0:00:03]} 28. Qb8# {[%clk 0:00:41.8]} 1-0

[Event "Early-Titled-Tuesday-Blitz-October-17-2023"]
[Site "Chess.com"]
[Date "2023.10.17"]
[Round "6"]
[White "Smiechu"]
[Black "HouseOfDurin"]
[Result "1-0"]
[WhiteElo "2494"]
[BlackElo "2284"]
[TimeControl "180+1"]
[EndTime "9:10:12 PDT"]
[Termination "Smiechu won by checkmate"]

1. e4 {[%clk 0:03:00.9]} 1... c5 {[%clk 0:03:00.3]} 2. Nf3 {[%clk 0:03:00.9]}
2... Nc6 {[%clk 0:03:01]} 3. d4 {[%clk 0:03:01.1]} 3... cxd4 {[%clk 0:03:01.9]}
4. Nxd4 {[%clk 0:03:01.4]} 4... g6 {[%clk 0:03:02.6]} 5. Nc3 {[%clk 0:03:01.8]}
5... Bg7 {[%clk 0:03:02.5]} 6. Be3 {[%clk 0:03:02.4]} 6... d6 {[%clk 0:03:01.3]}
7. f3 {[%clk 0:03:00.8]} 7... Nf6 {[%clk 0:03:01.6]} 8. Qd2 {[%clk 0:02:59.3]}
8... h5 {[%clk 0:03:01.9]} 9. Bc4 {[%clk 0:02:57.8]} 9... Nxd4 {[%clk
0:03:01.4]} 10. Bxd4 {[%clk 0:02:57.5]} 10... Bd7 {[%clk 0:03:00.2]} 11. Bb3
{[%clk 0:02:51]} 11... Qa5 {[%clk 0:02:59.8]} 12. O-O-O {[%clk 0:02:50.3]} 12...
Rc8 {[%clk 0:02:55.4]} 13. Kb1 {[%clk 0:02:50.3]} 13... b5 {[%clk 0:02:37.9]}
14. Bxf6 {[%clk 0:02:39]} 14... Bxf6 {[%clk 0:02:31.1]} 15. Nd5 {[%clk
0:02:38.8]} 15... Qxd2 {[%clk 0:02:30.8]} 16. Nxf6+ {[%clk 0:02:38.7]} 16...
exf6 {[%clk 0:02:31.4]} 17. Rxd2 {[%clk 0:02:39]} 17... Ke7 {[%clk 0:02:30.1]}
18. Rhd1 {[%clk 0:02:38.3]} 18... Rc6 {[%clk 0:02:30.2]} 19. Bd5 {[%clk
0:02:36.7]} 19... Rb6 {[%clk 0:02:30.3]} 20. c3 {[%clk 0:02:27.8]} 20... Be6
{[%clk 0:02:30]} 21. b3 {[%clk 0:02:25.3]} 21... Rc8 {[%clk 0:02:26.2]} 22. Kb2
{[%clk 0:02:24.9]} 22... f5 {[%clk 0:02:16.7]} 23. exf5 {[%clk 0:02:20.4]} 23...
Bxf5 {[%clk 0:02:16.7]} 24. Re1+ {[%clk 0:02:14.5]} 24... Kf6 {[%clk 0:02:16.7]}
25. Be4 {[%clk 0:02:13.2]} 25... Re8 {[%clk 0:02:06.3]} 26. Rde2 {[%clk
0:02:11.1]} 26... Bxe4 {[%clk 0:01:46.9]} 27. Rxe4 {[%clk 0:02:11.1]} 27... Rxe4
{[%clk 0:01:38.9]} 28. Rxe4 {[%clk 0:02:12]} 28... d5 {[%clk 0:01:38.9]} 29. Rd4
{[%clk 0:02:07.3]} 29... Rd6 {[%clk 0:01:38.5]} 30. a4 {[%clk 0:02:06.1]} 30...
bxa4 {[%clk 0:01:34.8]} 31. Rxa4 {[%clk 0:02:05.4]} 31... a6 {[%clk 0:01:34.7]}
32. Kc2 {[%clk 0:02:05.4]} 32... Ke5 {[%clk 0:01:34.5]} 33. Kd3 {[%clk
0:02:05.5]} 33... Rb6 {[%clk 0:01:30.1]} 34. b4 {[%clk 0:02:02.7]} 34... Rd6
{[%clk 0:01:19.5]} 35. Ra5 {[%clk 0:02:01.6]} 35... Kf4 {[%clk 0:01:14.1]} 36.
Kd4 {[%clk 0:01:59]} 36... Re6 {[%clk 0:00:51]} 37. Kxd5 {[%clk 0:01:58.1]}
37... Ke3 {[%clk 0:00:45.5]} 38. c4 {[%clk 0:01:55.2]} 38... h4 {[%clk
0:00:39.4]} 39. c5 {[%clk 0:01:51.9]} 39... h3 {[%clk 0:00:35.2]} 40. Ra3+
{[%clk 0:01:51.9]} 40... Kf2 {[%clk 0:00:34.9]} 41. gxh3 {[%clk 0:01:52.1]}
41... Re1 {[%clk 0:00:22.8]} 42. Rc3 {[%clk 0:01:50.2]} 42... Rb1 {[%clk
0:00:18.5]} 43. c6 {[%clk 0:01:48.5]} 43... Rxb4 {[%clk 0:00:18.2]} 44. c7
{[%clk 0:01:48.9]} 44... Rb5+ {[%clk 0:00:06.7]} 45. Rc5 {[%clk 0:01:48.9]}
45... Rxc5+ {[%clk 0:00:03.2]} 46. Kxc5 {[%clk 0:01:49]} 46... Kxf3 {[%clk
0:00:03.8]} 47. c8=Q {[%clk 0:01:49.3]} 47... Kg2 {[%clk 0:00:04.7]} 48. Qxa6
{[%clk 0:01:48.5]} 48... Kxh2 {[%clk 0:00:05.6]} 49. Qf6 {[%clk 0:01:48.6]}
49... Kxh3 {[%clk 0:00:05.8]} 50. Qxf7 {[%clk 0:01:48.8]} 50... g5 {[%clk
0:00:06]} 51. Kd4 {[%clk 0:01:48.7]} 51... g4 {[%clk 0:00:06.1]} 52. Ke3 {[%clk
0:01:49]} 52... g3 {[%clk 0:00:06.7]} 53. Kf3 {[%clk 0:01:49.4]} 53... Kh2
{[%clk 0:00:07.5]} 54. Qh5+ {[%clk 0:01:45.9]} 54... Kg1 {[%clk 0:00:07.6]} 55.
Kxg3 {[%clk 0:01:45.6]} 55... Kf1 {[%clk 0:00:07.2]} 56. Qd1# {[%clk 0:01:45.4]}
1-0

[Event "Early-Titled-Tuesday-Blitz-October-17-2023"]
[Site "Chess.com"]
[Date "2023.10.17"]
[Round "6"]
[White "slorovel"]
[Black "Nf3c5"]
[Result "0-1"]
[WhiteElo "2471"]
[BlackElo "2612"]
[TimeControl "180+1"]
[EndTime "9:10:19 PDT"]
[Termination "Nf3c5 won by checkmate"]

1. Nf3 {[%clk 0:03:00.9]} 1... d5 {[%clk 0:02:52.1]} 2. g3 {[%clk 0:03:00.5]}
2... c6 {[%clk 0:02:52.3]} 3. Bg2 {[%clk 0:03:00.3]} 3... Nf6 {[%clk 0:02:52.8]}
4. O-O {[%clk 0:03:00.4]} 4... Bf5 {[%clk 0:02:53.2]} 5. c4 {[%clk 0:03:00.3]}
5... e6 {[%clk 0:02:52.9]} 6. Qb3 {[%clk 0:03:00]} 6... Qb6 {[%clk 0:02:50.3]}
7. d3 {[%clk 0:03:00.2]} 7... Nbd7 {[%clk 0:02:37.3]} 8. Nbd2 {[%clk 0:02:52]}
8... Be7 {[%clk 0:02:30.9]} 9. Qc2 {[%clk 0:02:50]} 9... h6 {[%clk 0:02:09.5]}
10. cxd5 {[%clk 0:02:50]} 10... exd5 {[%clk 0:02:04.8]} 11. e4 {[%clk
0:02:47.5]} 11... dxe4 {[%clk 0:02:02]} 12. dxe4 {[%clk 0:02:47.7]} 12... Bh7
{[%clk 0:02:02.3]} 13. Nc4 {[%clk 0:02:43.3]} 13... Qa6 {[%clk 0:01:58.4]} 14.
Re1 {[%clk 0:02:41.5]} 14... O-O {[%clk 0:01:56.3]} 15. Nfd2 {[%clk 0:02:38.6]}
15... Rfe8 {[%clk 0:01:49.9]} 16. b3 {[%clk 0:02:38.4]} 16... Rad8 {[%clk
0:01:47.1]} 17. Bb2 {[%clk 0:02:38.2]} 17... Nc5 {[%clk 0:01:45.9]} 18. Re3
{[%clk 0:02:36.2]} 18... Ng4 {[%clk 0:01:39.2]} 19. Re2 {[%clk 0:02:29.6]} 19...
Nd3 {[%clk 0:01:25.2]} 20. Rf1 {[%clk 0:01:44.1]} 20... b5 {[%clk 0:01:07.4]}
21. Ne3 {[%clk 0:01:34.3]} 21... Nb4 {[%clk 0:00:50]} 22. Qc3 {[%clk 0:01:33.4]}
22... Nf6 {[%clk 0:00:44.9]} 23. a3 {[%clk 0:01:33.3]} 23... Rd3 {[%clk
0:00:42.8]} 24. Qc1 {[%clk 0:01:31.5]} 24... Na2 {[%clk 0:00:19.5]} 25. Qc2
{[%clk 0:01:31.6]} 25... Red8 {[%clk 0:00:18.1]} 26. Bxf6 {[%clk 0:01:31.3]}
26... Bxf6 {[%clk 0:00:17.9]} 27. Qxa2 {[%clk 0:01:31.9]} 27... Bc3 {[%clk
0:00:16.4]} 28. Nf3 {[%clk 0:01:28.9]} 28... Bxe4 {[%clk 0:00:13.1]} 29. Ne1
{[%clk 0:01:29.1]} 29... Bxg2 {[%clk 0:00:11.8]} 30. N1xg2 {[%clk 0:01:30]}
30... Bf6 {[%clk 0:00:11.2]} 31. Qc2 {[%clk 0:01:29.5]} 31... Qb6 {[%clk
0:00:11.3]} 32. Nf4 {[%clk 0:01:29.2]} 32... R3d7 {[%clk 0:00:11.3]} 33. Ng4
{[%clk 0:01:29.4]} 33... Bg5 {[%clk 0:00:10.9]} 34. Qf5 {[%clk 0:01:27.6]} 34...
Rd4 {[%clk 0:00:08.9]} 35. Re4 {[%clk 0:01:24.9]} 35... R4d6 {[%clk 0:00:07.5]}
36. h4 {[%clk 0:01:23.9]} 36... Bxf4 {[%clk 0:00:06.9]} 37. Rxf4 {[%clk
0:01:24.4]} 37... Qb7 {[%clk 0:00:06.9]} 38. Re1 {[%clk 0:01:23.9]} 38... a5
{[%clk 0:00:06.1]} 39. Qe5 {[%clk 0:01:23]} 39... Re6 {[%clk 0:00:05.6]} 40. Qc3
{[%clk 0:01:22.9]} 40... Qe7 {[%clk 0:00:05.3]} 41. Rxe6 {[%clk 0:01:22.3]}
41... Qxe6 {[%clk 0:00:06.2]} 42. h5 {[%clk 0:01:18.7]} 42... Rd1+ {[%clk
0:00:06.2]} 43. Kh2 {[%clk 0:01:18.9]} 43... Qd5 {[%clk 0:00:06.1]} 44. Qf3
{[%clk 0:01:18.6]} 44... Qxh5+ {[%clk 0:00:05.9]} 45. Kg2 {[%clk 0:01:14.1]}
45... Qh1# {[%clk 0:00:06.8]} 0-1

[Event "Early-Titled-Tuesday-Blitz-October-17-2023"]
[Site "Chess.com"]
[Date "2023.10.17"]
[Round "6"]
[White "ChesscularGodofchess"]
[Black "KorolDimitriy75"]
[Result "1/2-1/2"]
[WhiteElo "2205"]
[BlackElo "2403"]
[TimeControl "180+1"]
[EndTime "9:10:19 PDT"]
[Termination "Game drawn by repetition"]

1. d4 {[%clk 0:03:00.9]} 1... Nf6 {[%clk 0:02:59.1]} 2. Nf3 {[%clk 0:03:00.8]}
2... g6 {[%clk 0:02:58.9]} 3. Nbd2 {[%clk 0:03:00.3]} 3... c5 {[%clk 0:02:58.1]}
4. e3 {[%clk 0:02:58.2]} 4... cxd4 {[%clk 0:02:54.1]} 5. exd4 {[%clk 0:02:58.1]}
5... d5 {[%clk 0:02:54.4]} 6. h3 {[%clk 0:02:52.4]} 6... Bg7 {[%clk 0:02:55.3]}
7. Bd3 {[%clk 0:02:52.2]} 7... O-O {[%clk 0:02:54.3]} 8. O-O {[%clk 0:02:52.2]}
8... Nc6 {[%clk 0:02:54.3]} 9. c3 {[%clk 0:02:52.2]} 9... Rb8 {[%clk 0:02:49.1]}
10. Qe2 {[%clk 0:02:46]} 10... a6 {[%clk 0:02:42]} 11. a4 {[%clk 0:02:45.1]}
11... Bd7 {[%clk 0:02:37.5]} 12. Ne5 {[%clk 0:02:44.4]} 12... Nxe5 {[%clk
0:02:21.5]} 13. dxe5 {[%clk 0:02:45.3]} 13... Ne8 {[%clk 0:02:20.2]} 14. Nf3
{[%clk 0:02:42]} 14... Nc7 {[%clk 0:02:09.3]} 15. Be3 {[%clk 0:02:39.5]} 15...
b5 {[%clk 0:02:06]} 16. axb5 {[%clk 0:02:39.6]} 16... Bxb5 {[%clk 0:02:01.2]}
17. Bxb5 {[%clk 0:02:35.6]} 17... axb5 {[%clk 0:02:01.6]} 18. Ra7 {[%clk
0:02:28.2]} 18... b4 {[%clk 0:01:45.6]} 19. Bc5 {[%clk 0:02:20.6]} 19... bxc3
{[%clk 0:01:41.7]} 20. bxc3 {[%clk 0:02:21.5]} 20... Re8 {[%clk 0:01:29.4]} 21.
Nd4 {[%clk 0:02:14.4]} 21... Qd7 {[%clk 0:01:22.8]} 22. Re1 {[%clk 0:01:37.6]}
22... Ra8 {[%clk 0:01:10.9]} 23. e6 {[%clk 0:01:29.7]} 23... fxe6 {[%clk
0:01:08.3]} 24. Nxe6 {[%clk 0:01:20.6]} 24... Qxe6 {[%clk 0:00:42.5]} 25. Rxc7
{[%clk 0:01:14.6]} 25... Qxe2 {[%clk 0:00:39.6]} 26. Rxe2 {[%clk 0:01:13.3]}
26... e5 {[%clk 0:00:31.8]} 27. g3 {[%clk 0:01:00.3]} 27... Rac8 {[%clk
0:00:29]} 28. Bd6 {[%clk 0:00:55.1]} 28... Rxc7 {[%clk 0:00:25.6]} 29. Bxc7
{[%clk 0:00:56]} 29... e4 {[%clk 0:00:26]} 30. Ba5 {[%clk 0:00:40]} 30... Rc8
{[%clk 0:00:24.8]} 31. Re3 {[%clk 0:00:37.6]} 31... Bh6 {[%clk 0:00:17.6]} 32.
Re2 {[%clk 0:00:34.1]} 32... Bg7 {[%clk 0:00:17.6]} 33. Re3 {[%clk 0:00:34.3]}
33... Bh6 {[%clk 0:00:17.6]} 34. Re2 {[%clk 0:00:34.4]} 34... Bg7 {[%clk
0:00:17.9]} 1/2-1/2

[Event "Early-Titled-Tuesday-Blitz-October-17-2023"]
[Site "Chess.com"]
[Date "2023.10.17"]
[Round "6"]
[White "MFatigue"]
[Black "PeshkaCh"]
[Result "0-1"]
[WhiteElo "2556"]
[BlackElo "2815"]
[TimeControl "180+1"]
[EndTime "9:10:20 PDT"]
[Termination "PeshkaCh won by resignation"]

1. e4 {[%clk 0:03:00.9]} 1... e5 {[%clk 0:02:59.8]} 2. Nf3 {[%clk 0:02:58.7]}
2... Nc6 {[%clk 0:03:00.3]} 3. d4 {[%clk 0:02:57.3]} 3... exd4 {[%clk
0:02:59.9]} 4. Bc4 {[%clk 0:02:53.9]} 4... Nf6 {[%clk 0:02:55.5]} 5. O-O {[%clk
0:02:49.5]} 5... Nxe4 {[%clk 0:02:42.3]} 6. Re1 {[%clk 0:02:41.3]} 6... d5
{[%clk 0:02:38.2]} 7. Bxd5 {[%clk 0:02:41.5]} 7... Qxd5 {[%clk 0:02:39.1]} 8.
Nc3 {[%clk 0:02:42.2]} 8... Qh5 {[%clk 0:02:39.5]} 9. Nxe4 {[%clk 0:02:42.6]}
9... Be6 {[%clk 0:02:23.4]} 10. Bg5 {[%clk 0:02:42.4]} 10... Be7 {[%clk
0:02:11.9]} 11. Bxe7 {[%clk 0:02:40.7]} 11... Nxe7 {[%clk 0:02:12.8]} 12. Nxd4
{[%clk 0:02:40.9]} 12... Qxd1 {[%clk 0:02:10.5]} 13. Raxd1 {[%clk 0:02:41.8]}
13... O-O-O {[%clk 0:01:54.2]} 14. Nxe6 {[%clk 0:02:41.9]} 14... fxe6 {[%clk
0:01:55.1]} 15. Ng5 {[%clk 0:02:42.1]} 15... Rxd1 {[%clk 0:01:27.6]} 16. Rxd1
{[%clk 0:02:43]} 16... e5 {[%clk 0:01:27.8]} 17. Nf7 {[%clk 0:02:38.9]} 17...
Re8 {[%clk 0:01:24.9]} 18. Nxe5 {[%clk 0:02:39.3]} 18... Nf5 {[%clk 0:01:23.4]}
19. Nf3 {[%clk 0:02:20.3]} 19... Nd6 {[%clk 0:01:21.1]} 20. Re1 {[%clk
0:02:16.5]} 20... Rd8 {[%clk 0:01:17.1]} 21. Kf1 {[%clk 0:02:13]} 21... Nc4
{[%clk 0:01:09.3]} 22. b3 {[%clk 0:02:12]} 22... Nd2+ {[%clk 0:01:08.7]} 23. Ke2
{[%clk 0:02:06.6]} 23... Ne4 {[%clk 0:01:07.7]} 24. Ke3 {[%clk 0:01:56.7]} 24...
Nc3 {[%clk 0:01:07.7]} 25. Ne5 {[%clk 0:01:44.3]} 25... Nxa2 {[%clk 0:00:56]}
26. f4 {[%clk 0:01:28.3]} 26... Nb4 {[%clk 0:00:55.7]} 27. Re2 {[%clk
0:01:28.4]} 27... b5 {[%clk 0:00:54.2]} 28. g4 {[%clk 0:01:15.8]} 28... a5
{[%clk 0:00:52.7]} 29. c4 {[%clk 0:01:08.1]} 29... a4 {[%clk 0:00:48.7]} 30.
bxa4 {[%clk 0:00:52.5]} 30... bxa4 {[%clk 0:00:49.6]} 31. Rb2 {[%clk 0:00:52.3]}
31... c5 {[%clk 0:00:49]} 32. Ke4 {[%clk 0:00:40.4]} 32... Rd1 {[%clk
0:00:22.4]} 33. Kf5 {[%clk 0:00:32.4]} 33... a3 {[%clk 0:00:22]} 34. Rb3 {[%clk
0:00:32.4]} 34... a2 {[%clk 0:00:22.1]} 0-1